bitfinex-derivatives/quotes_ETHF0:USTF0_20260303
["timestamp","ask_amount","ask_price","bid_price","bid_amount"]
[1772534515132,0.54918107,1954.3,1953.6,0.58461481]
[1772534518135,0.54355719,1954.1,1953.6,0.58461481]
[1772534519133,0.54355719,1954.2,1953.6,0.58461481]
[1772534519828,0.00562388,1954.3,1953.6,0.58461481]
[1772534520333,0.54918107,1954.3,1953.6,0.58461481]
[1772534521036,0.54918107,1954.3,1953.6,0.0064738]
[1772534521237,0.54355719,1954.0,1953.6,3.8e-06]
[1772534521434,0.54355719,1954.0,1953.5,0.57814101]
[1772534521832,0.00562388,1954.3,1953.5,0.57814101]
[1772534522134,0.54355719,1954.1,1953.5,0.57814101]
[1772534522534,0.54355719,1954.1,1953.5,0.58342405]
[1772534524038,0.54355719,1953.9,1953.5,0.00528304]
[1772534524232,0.54355719,1953.7,1952.8,0.57814101]
[1772534524535,0.54355719,1953.5,1952.8,0.57814101]
[1772534525437,0.54355719,1953.5,1952.8,0.58353101]
[1772534525638,0.54355719,1953.5,1952.8,0.00539]
[1772534525836,0.54355719,1953.5,1952.8,0.58353101]
[1772534526535,0.54355719,1954.2,1953.1,0.57814101]
[1772534527831,0.54355719,1954.2,1953.3,0.57814101]
[1772534528942,0.54918107,1954.3,1953.5,0.57814101]
[1772534533440,0.00562388,1954.3,1953.5,0.57814101]
[1772534535842,0.54918107,1954.3,1953.5,0.57814101]
[1772534539246,0.00562388,1954.3,1953.5,0.57814101]
[1772534543344,0.5550898,1954.8,1953.6,0.59209391]
[1772534543650,0.5550898,1954.8,1953.7,0.59209391]
[1772534544351,0.55961987,1954.8,1953.7,0.59209391]
[1772534545251,0.55961987,1954.8,1953.9,0.59209391]
[1772534545452,0.55961987,1954.8,1954.1,0.59209391]
[1772534553051,0.00453007,1954.8,1954.1,0.59209391]
[1772534553256,1e-08,1954.8,1954.2,0.59209391]
[1772534553559,0.5550898,1955.0,1954.3,0.59209391]
[1772534553857,0.5550898,1955.5,1954.3,0.59209391]
[1772534554053,0.5550898,1955.5,1954.5,0.59209391]
[1772534554259,0.5550898,1955.5,1954.7,0.59209391]
[1772534554755,0.55977379,1955.5,1954.7,0.59764043]
[1772534556262,0.00468399,1955.5,1954.7,0.59764043]
[1772534556453,0.55977379,1955.5,1954.7,0.59764043]
[1772534557356,0.00468399,1955.5,1954.7,0.59764043]
[1772534558460,0.55977379,1955.5,1954.7,0.59764043]
[1772534559554,0.00468399,1955.5,1954.7,0.59764043]
[1772534560560,0.55977379,1955.5,1954.7,0.59764043]
[1772534560957,0.55977379,1955.5,1954.8,6.703]
[1772534561158,0.55977379,1955.5,1954.9,0.59209391]
[1772534564154,0.00468399,1955.5,1954.9,0.59209391]
[1772534565163,0.5550898,1955.8,1954.9,0.59209391]
[1772534565960,0.5603435,1955.8,1954.9,0.59209391]
[1772534569969,0.37691031,1955.7,1954.9,0.59209391]
[1772534570262,0.63256031,1956.2,1954.9,0.59209391]
[1772534570466,0.37691031,1956.1,1954.9,0.59209391]
[1772534570971,0.3816912,1956.1,1954.9,0.59209391]
[1772534573875,0.3816912,1956.1,1955.1,0.57938592]
[1772534575075,0.38062382,1956.1,1955.1,0.57938592]
[1772534576473,0.37503387,1955.9,1955.0,7.28038592]
[1772534577169,0.37503387,1955.9,1955.1,0.57938592]
[1772534579777,0.36765038,1956.0,1955.1,0.57938592]
[1772534579972,0.25553,1957.1,1955.6,0.5964534]
[1772534580172,0.25557,1956.7,1955.7,6.7]
[1772534580371,0.25557,1956.7,1955.1,0.5964534]
[1772534580572,0.25563,1956.3,1955.2,7.2964534]
[1772534580974,0.26019353,1956.3,1955.2,7.2964534]
[1772534581271,0.00252001,1956.0,1955.2,6.7]
[1772534581674,7.06546044,1956.3,1954.9,0.59519339]
[1772534581675,0.00252001,1955.8,1954.9,0.59519339]
[1772534581970,0.00252001,1955.4,1954.7,0.00554652]
[1772534582175,4.28939386,1955.6,1954.4,6.7]
[1772534582376,7.06089691,1955.5,1954.4,6.7]
[1772534582878,0.25575,1955.3,1954.4,7.29645339]
[1772534583077,0.25575,1955.3,1954.4,7.30032435]
[1772534584481,7.31664691,1955.3,1954.5,0.60929107]
[1772534584677,4.28939386,1955.6,1954.5,0.60929107]
[1772534584881,0.25569,1955.8,1954.5,0.60929107]
[1772534585184,7.073944,1955.9,1954.5,0.60929107]
[1772534585383,0.26019353,1956.3,1954.7,0.61269904]
[1772534585883,0.26019353,1956.3,1954.9,0.61269904]
[1772534586073,0.26019353,1956.3,1955.1,0.61269904]
[1772534588284,0.00456353,1956.3,1955.1,0.61269904]
[1772534588683,0.00456353,1956.3,1955.0,6.701]
[1772534588684,0.00456353,1956.3,1955.3,0.60798587]
[1772534589891,4.28939386,1957.1,1955.5,0.60754607]
[1772534589892,0.25552,1957.1,1955.5,0.60754607]
[1772534590091,0.25552,1957.1,1955.7,0.60754607]
[1772534590495,11.6210704,1957.1,1955.7,0.60754607]
[1772534590791,11.62561848,1957.1,1955.7,0.60754607]
[1772534591494,0.25557,1956.7,1955.7,0.60754607]
[1772534592391,0.25557,1956.7,1955.6,7.3087008]
[1772534592787,0.25563,1956.3,1955.6,6.701]
[1772534592993,0.25563,1956.3,1955.4,0.6077008]
[1772534594584,0.25563,1956.3,1955.2,0.60957851]
[1772534594788,0.25568,1955.9,1955.0,6.7]
[1772534594989,0.25568,1955.9,1955.0,0.60957851]
[1772534597898,0.25568,1955.9,1954.8,7.31194317]
[1772534598396,0.25573,1955.5,1954.5,0.61194447]
[1772534598591,6.96000486,1955.5,1954.5,0.61194447]
[1772534599294,6.7,1955.4,1954.5,0.61194447]
[1772534599493,6.96000486,1955.5,1954.5,0.61194447]
[1772534600291,6.96100486,1955.5,1954.5,0.61194447]
[1772534601693,6.701,1955.4,1954.5,0.61194447]
[1772534602893,0.26000486,1955.5,1954.5,0.61194447]
[1772534603098,6.701,1955.4,1954.5,0.61194447]
[1772534603397,0.26000486,1955.5,1954.5,0.61194447]
[1772534607404,6.702,1955.4,1954.5,0.61194447]
[1772534608502,0.25575,1955.3,1954.5,0.61194447]
[1772534612605,0.25575,1955.3,1954.4,0.62895088]
[1772534613495,6.702,1955.2,1954.4,0.62895088]
[1772534613700,0.25578,1955.1,1954.4,0.62895088]
[1772534613904,6.95778,1955.1,1954.4,0.62895088]
[1772534614601,0.25578,1955.1,1954.4,0.62895088]
[1772534614801,6.95778,1955.1,1954.4,0.62895088]
[1772534615005,6.95778,1955.1,1954.2,0.62530678]
[1772534616108,6.95778,1955.1,1954.2,0.62920669]
[1772534616705,6.702,1955.0,1954.2,0.62920669]
[1772534617809,6.703,1954.9,1954.2,0.62920669]
[1772534618512,0.25578,1955.1,1954.2,0.62920669]
[1772534618710,6.703,1955.0,1954.2,0.62920669]
[1772534619110,0.25578,1955.1,1954.2,0.62920669]
[1772534619607,6.95878,1955.1,1954.2,0.62920669]
[1772534622209,6.703,1955.0,1954.2,0.62920669]
[1772534623211,0.25581,1954.9,1954.2,0.62920669]
[1772534623710,6.95881,1954.9,1954.2,0.62920669]
[1772534624514,6.95881,1954.9,1954.2,0.00389991]
[1772534624709,6.95881,1954.9,1953.9,0.63229654]
[1772534625014,6.95881,1954.9,1953.1,20.31188998]
[1772534625015,0.25588,1954.4,1953.4,0.63229654]
[1772534625313,6.703,1954.3,1953.4,0.63229654]
[1772534625910,6.703,1954.3,1953.4,0.63879715]
[1772534626111,0.2559,1954.2,1953.4,0.63879715]
[1772534627013,0.25597,1953.7,1952.6,0.63520018]
[1772534628015,0.2626053,1953.7,1952.6,0.64036325]
[1772534628617,0.25591,1954.2,1952.8,0.63356838]
[1772534628811,7.06474456,1954.4,1953.0,0.63025073]
[1772534629016,4.522837,1954.7,1953.0,0.63025073]
[1772534629216,4.522777,1955.2,1953.4,0.63025073]
[1772534629413,7.06172855,1955.1,1953.4,0.63025073]
[1772534629613,0.25579,1955.0,1953.6,0.62777799]
[1772534629816,0.25579,1955.0,1953.8,0.62777799]
[1772534632116,0.00585899,1955.1,1954.0,0.62887189]
[1772534632317,0.00585899,1955.1,1954.0,0.63256175]
[1772534638627,7.0652263,1955.7,1954.3,0.62360784]
[1772534638828,7.3209363,1955.6,1954.3,0.62360784]
[1772534639127,0.25571,1955.6,1954.5,0.62360784]
[1772534639427,0.26019738,1955.6,1954.5,0.62360784]
[1772534642323,7.32584018,1955.6,1954.5,0.62360784]
[1772534642622,0.26019738,1955.6,1954.5,0.62360784]
[1772534643923,0.26019738,1955.6,1954.7,0.62234325]
[1772534645629,1.79888957,1955.6,1954.7,0.62234325]
[1772534645925,0.25576,1955.3,1954.7,0.62234325]
[1772534647228,1.79445219,1955.3,1954.1,0.62179537]
[1772534648029,0.25581,1954.9,1954.1,0.62179537]
[1772534656034,0.25586,1954.6,1954.0,0.00368986]
[1772534656525,0.25586,1954.6,1953.8,0.62114113]
[1772534656723,0.52169076,1954.0,1953.6,0.59515769]
[1772534657530,0.52704313,1954.0,1953.6,0.5988365]
[1772534657731,0.52704313,1954.0,1953.6,0.5672727]
[1772534658328,0.52102374,1953.8,1953.0,0.56359389]
[1772534659322,0.25594,1953.9,1953.0,0.56885119]
[1772534659534,0.00535237,1954.0,1953.0,0.56885119]
[1772534662336,0.00535237,1954.0,1953.1,0.56082132]
[1772534662627,0.51217351,1954.3,1953.1,0.56082132]
[1772534663030,0.51217351,1954.7,1953.5,0.56082132]
[1772534663236,0.51217351,1954.7,1953.7,0.56082132]
[1772534663534,0.51704731,1954.7,1953.7,0.56082132]
[1772534666039,0.52007776,1954.5,1953.8,0.56082132]
[1772534666235,0.52007776,1954.3,1953.8,0.56082132]
[1772534667737,0.52007776,1954.3,1953.6,0.66082132]
[1772534669936,0.51904214,1954.1,1953.6,0.66082132]
[1772534670238,0.77494214,1954.2,1953.6,0.66082132]
[1772534670435,0.2559,1954.2,1953.6,0.66082132]
[1772534670834,0.0048738,1954.7,1953.6,0.66082132]
[1772534670835,0.51904214,1954.5,1953.6,0.66082132]
[1772534673339,0.50243264,1954.3,1953.6,0.66082132]
[1772534676845,0.50315756,1954.3,1953.6,0.66082132]
[1772534677443,4.27094488,1954.7,1953.6,0.66082132]
[1772534677648,0.50553402,1954.7,1953.6,0.66082132]
[1772534677946,7.5952183,1954.7,1953.6,0.66082132]
[1772534678142,7.5952183,1954.7,1953.7,0.56082132]
[1772534678443,0.50066022,1955.1,1954.1,0.56082132]
[1772534678742,0.50553402,1955.5,1954.3,0.56082132]
[1772534679445,0.51169074,1955.5,1954.3,0.56082132]
[1772534682043,0.51169074,1955.5,1954.5,0.56082132]
[1772534682248,0.51169074,1955.5,1954.5,0.56585482]
[1772534682449,0.00615672,1955.5,1954.5,0.56585482]
[1772534684748,0.00615672,1955.5,1955.1,0.56082132]
[1772534685148,0.49888085,1956.0,1955.1,0.56082132]
[1772534685946,0.50437067,1956.4,1955.1,0.56082132]
[1772534686142,0.50825986,1956.4,1955.1,0.56082132]
[1772534689044,0.50825986,1956.4,1955.4,0.57231127]
[1772534689250,0.50825986,1956.4,1955.6,0.57231127]
[1772534690444,0.50825986,1956.4,1955.7,7.27531127]
[1772534690852,0.50825986,1956.4,1955.8,0.57231127]
[1772534691756,0.5029593,1956.4,1955.8,0.57231127]
[1772534691952,0.5029593,1956.4,1955.6,7.27431127]
[1772534692357,0.39907011,1956.2,1955.6,0.57231127]
[1772534693058,0.25562,1956.3,1955.6,0.57231127]
[1772534693953,0.65244121,1956.3,1955.6,0.57231127]
[1772534695656,0.40113326,1956.2,1955.6,0.57231127]
[1772534696958,0.00388919,1956.4,1955.6,0.57231127]
[1772534697661,0.40084372,1956.3,1955.6,0.57231127]
[1772534699552,0.25949919,1956.4,1955.6,0.57231127]
[1772534700361,0.44283163,1957.2,1955.8,0.57231127]
[1772534700552,0.35386184,1957.2,1956.0,0.57231127]
[1772534700752,0.2555,1957.3,1956.0,0.57231127]
[1772534700753,0.35386184,1957.3,1956.0,0.57231127]
[1772534701259,0.35386184,1957.3,1956.2,0.57231127]
[1772534701451,0.25551,1957.2,1956.4,0.57231127]
[1772534701653,0.35256661,1957.1,1956.4,0.57231127]
[1772534701854,0.35833815,1957.3,1956.4,0.57231127]
[1772534702055,0.00577154,1957.3,1956.4,0.57231127]
[1772534703757,0.37831161,1957.2,1956.4,0.57231127]
[1772534704159,0.00577154,1957.3,1956.4,0.57231127]
[1772534704360,0.00577154,1957.3,1956.6,0.57231127]
[1772534704657,0.38408315,1957.3,1956.6,0.57231127]
[1772534705856,0.38808487,1957.7,1956.6,0.57231127]
[1772534706464,0.25543,1957.8,1956.6,0.57231127]
[1772534706759,0.64928641,1957.8,1956.6,0.57231127]
[1772534706960,0.65588498,1957.8,1956.6,0.57231127]
[1772534707159,0.40045498,1957.8,1956.6,0.57231127]
[1772534707361,0.28550004,1957.6,1956.8,0.57231127]
[1772534707760,0.28550004,1957.6,1956.6,0.57231127]
[1772534707761,0.25547,1957.5,1956.6,0.57231127]
[1772534708064,0.28550004,1957.4,1956.6,0.57231127]
[1772534708364,0.28550004,1957.2,1956.6,0.57231127]
[1772534708768,0.28550004,1957.0,1956.2,0.57231127]
[1772534709059,0.54917813,1956.8,1956.0,0.5781795]
[1772534711463,0.54917813,1956.6,1956.0,8.23e-06]
[1772534711772,0.54917813,1956.5,1955.6,0.57231127]
[1772534712169,0.54917813,1956.4,1955.6,0.57231127]
[1772534712567,0.55394529,1956.4,1955.6,0.57819881]
[1772534712771,0.00476716,1956.4,1955.6,0.57819881]
[1772534713171,0.55394529,1956.4,1955.6,0.57819881]
[1772534713572,0.54917813,1956.2,1955.6,0.57819881]
[1772534713773,0.54917813,1956.2,1955.6,0.00588754]
[1772534715477,0.54917813,1956.0,1955.6,0.00588754]
[1772534715673,0.54917813,1956.0,1955.3,0.57231127]
[1772534716576,0.54917813,1956.0,1955.3,0.57606562]
[1772534716875,0.25565,1956.1,1955.3,0.57606562]
[1772534717075,0.80482813,1956.1,1955.3,0.57606562]
[1772534717278,0.00476716,1956.4,1955.3,0.57606562]
[1772534717474,0.55394529,1956.4,1955.3,0.57606562]
[1772534717676,0.55394529,1956.4,1955.5,0.57231127]
[1772534717976,0.00476716,1956.4,1955.5,0.57231127]
[1772534718676,0.58791506,1956.4,1955.5,0.57231127]
[1772534718876,0.58791506,1956.4,1955.6,0.55519775]
[1772534719878,0.00476716,1956.4,1955.6,0.55519775]
[1772534720374,0.57311328,1956.4,1955.7,0.55519775]
[1772534723277,0.56834612,1956.0,1955.3,0.00375435]
[1772534724082,0.56834612,1956.0,1955.3,0.5589521]
[1772534725076,0.56834612,1956.0,1955.3,0.00375435]
[1772534725574,0.56834612,1955.6,1955.3,0.00375435]
[1772534725776,0.56834612,1955.6,1955.0,0.65519775]
[1772534726778,0.56834612,1956.0,1955.0,0.66083092]
[1772534728582,0.56834612,1956.0,1955.1,0.55519775]
[1772534728984,0.56834612,1956.2,1955.1,0.55519775]
[1772534730886,0.56834612,1956.2,1955.3,0.55519775]
[1772534734586,0.57311328,1956.4,1955.3,0.55519775]
[1772534734786,0.56834612,1956.2,1955.3,0.55519775]
[1772534734992,0.00476716,1956.4,1955.3,0.55519775]
[1772534734993,0.56834612,1956.0,1955.3,0.55519775]
[1772534735690,0.56834612,1955.8,1955.1,0.55519775]
[1772534738294,0.2557,1955.7,1955.0,0.10563317]
[1772534738494,0.56834612,1955.6,1955.0,0.10563317]
[1772534739896,0.56834612,1955.6,1955.0,0.66083092]
[1772534741900,0.56834612,1955.6,1955.0,0.10563317]
[1772534743400,0.56834612,1955.6,1955.0,0.66083092]
[1772534744302,0.56834612,1955.9,1955.0,0.66083092]
[1772534746404,0.82399612,1956.1,1955.0,0.66083092]
[1772534746802,0.56834612,1956.0,1955.0,0.66083092]
[1772534749106,0.57761223,1956.4,1955.3,0.56730646]
[1772534749307,0.00476716,1956.4,1955.5,0.56730646]
[1772534756313,0.57284507,1956.7,1955.6,0.56730646]
[1772534756610,0.57284507,1956.7,1955.7,0.56730646]
[1772534757016,0.57284507,1956.7,1955.9,0.56730646]
[1772534757310,0.57747829,1956.7,1955.9,0.56730646]
[1772534761610,0.57284507,1957.3,1956.3,0.56730646]
[1772534761812,0.57284507,1957.3,1956.5,0.56730646]
[1772534762207,0.57284507,1957.1,1956.3,0.56730646]
[1772534762415,0.57284507,1957.5,1956.5,0.56730646]
[1772534762616,0.00364375,1957.1,1956.5,0.56730646]
[1772534762815,0.57284507,1957.4,1956.5,0.56730646]
[1772534763811,0.57658283,1957.4,1956.5,0.49130646]
[1772534765917,0.57284507,1957.8,1956.7,0.56730646]
[1772534766215,0.57284507,1957.8,1956.6,0.25558]
[1772534766216,0.57284507,1957.8,1956.9,0.56730646]
[1772534766516,0.57284507,1957.8,1957.1,0.56730646]
[1772534766912,0.57738332,1957.8,1957.1,0.56730646]
[1772534767218,0.00453825,1957.8,1957.1,0.56730646]
[1772534767415,1.49753027,1958.0,1957.1,0.56730646]
[1772534767915,0.57284507,1957.9,1957.1,0.56730646]
[1772534768214,0.57284507,1957.9,1957.3,0.56730646]
[1772534768414,0.57914769,1957.9,1957.3,0.56730646]
[1772534768616,0.00630262,1957.9,1957.3,0.56730646]
[1772534768812,0.57914769,1957.9,1957.3,0.56730646]
[1772534770018,0.00630262,1957.9,1957.3,0.56730646]
[1772534770815,0.57914769,1957.9,1957.3,0.56730646]
[1772534771017,0.00630262,1957.9,1957.3,0.56730646]
[1772534771914,0.57914769,1957.9,1957.3,0.56730646]
[1772534772119,0.57914769,1957.9,1957.0,7.26330646]
[1772534772321,0.00630262,1957.9,1957.1,0.56730646]
[1772534772521,0.57914769,1957.9,1957.3,0.56730646]
[1772534772719,0.00630262,1957.9,1957.3,0.56730646]
[1772534772912,0.9246852,1958.0,1957.3,0.56730646]
[1772534773714,1.49753027,1958.0,1957.3,0.56730646]
[1772534773910,0.57284507,1957.9,1957.3,0.56730646]
[1772534774111,0.57284507,1957.9,1957.5,0.56730646]
[1772534774415,0.57284507,1957.9,1957.3,0.56730646]
[1772534774721,0.57284507,1957.9,1957.4,7.26330646]
[1772534774919,0.57284507,1957.9,1957.4,0.56730646]
[1772534775419,0.57284507,1957.9,1957.0,0.56730646]
[1772534775622,0.57284507,1957.9,1957.2,0.56730646]
[1772534775922,0.57284507,1957.9,1957.3,0.56730646]
[1772534776519,0.57284507,1957.9,1956.6,0.56730646]
[1772534776821,0.57284507,1957.9,1957.0,0.56730646]
[1772534777412,0.57284507,1957.9,1956.5,0.25559]
[1772534777413,0.57284507,1957.9,1957.1,7.26230646]
[1772534777619,0.57284507,1957.9,1956.6,0.58861848]
[1772534777921,0.55515596,1957.7,1956.8,0.58861848]
[1772534778521,0.55515596,1957.9,1956.8,0.58861848]
[1772534778725,0.92982128,1958.0,1956.9,0.58861848]
[1772534779423,1.5224846,1958.0,1956.9,0.58861848]
[1772534779626,0.92982128,1958.0,1957.2,0.55497732]
[1772534779920,0.92982128,1958.0,1957.4,0.55497732]
[1772534780523,0.59266332,1958.4,1957.4,0.55497732]
[1772534780920,0.59266332,1958.6,1957.5,0.55497732]
[1772534781124,0.59266332,1958.9,1957.8,0.55497732]
[1772534781323,0.59266332,1958.9,1957.6,0.25545]
[1772534781324,0.59266332,1958.9,1958.0,0.55497732]
[1772534781632,0.59792239,1958.9,1958.0,0.55964706]
[1772534782229,0.59266332,1958.8,1958.1,7.24997732]
[1772534782424,0.59266332,1958.8,1958.2,0.55497732]
[1772534782826,0.59266332,1958.8,1958.2,6.695]
[1772534783225,0.59266332,1958.8,1958.2,6.694]
[1772534783721,0.59266332,1958.8,1958.1,0.55497732]
[1772534783929,0.59266332,1958.8,1958.2,6.694]
[1772534784224,0.59266332,1958.8,1958.3,0.55497732]
[1772534784421,0.25531,1958.7,1958.0,0.00466974]
[1772534784627,0.59266332,1958.6,1958.0,6.69866974]
[1772534785027,0.59266332,1958.6,1958.1,0.55497732]
[1772534786029,0.25531,1958.7,1958.1,0.55497732]
[1772534787026,0.59266332,1958.8,1958.1,0.55497732]
[1772534787718,0.84796332,1958.8,1958.0,0.00466974]
[1772534788021,0.59266332,1958.5,1957.5,7.24797732]
[1772534788222,0.59266332,1957.9,1957.1,0.55497732]
[1772534788419,0.59266332,1957.7,1957.1,6.693]
[1772534788830,0.59266332,1957.7,1957.1,0.0050321]
[1772534789127,0.59266332,1957.7,1957.1,6.6980321]
[1772534789922,0.59266332,1957.7,1957.1,0.0050321]
[1772534791426,0.25545,1957.6,1956.8,0.55497732]
[1772534791633,0.25545,1957.6,1956.6,6.693]
[1772534791634,0.59266332,1957.5,1956.6,6.693]
[1772534791925,0.59266332,1957.3,1956.7,6.693]
[1772534792630,0.59859272,1957.3,1956.7,6.69960175]
[1772534795333,0.59859272,1957.3,1956.8,0.55497732]
[1772534795531,0.59266332,1957.1,1956.7,0.00660175]
[1772534795730,0.59266332,1957.1,1956.8,0.55497732]
[1772534796025,0.0059294,1957.3,1956.8,0.55497732]
[1772534796226,0.25545,1957.7,1956.8,0.55497732]
[1772534796432,0.59266332,1957.8,1956.8,0.55497732]
[1772534796835,0.59266332,1958.0,1956.8,0.55497732]
[1772534797132,0.59836265,1958.0,1957.1,0.55497732]
[1772534797331,0.59836265,1958.0,1957.3,0.55497732]
[1772534798434,0.59836265,1958.0,1957.4,6.694]
[1772534798734,0.59836265,1958.0,1957.5,6.694]
[1772534799649,0.59836265,1958.0,1957.3,0.55497732]
[1772534799844,0.59266332,1957.8,1957.1,0.55497732]
[1772534800245,0.59266332,1957.8,1957.2,6.694]
[1772534800446,0.59266332,1957.6,1957.2,6.694]
[1772534800952,0.59266332,1957.6,1956.9,0.55497732]
[1772534801247,0.59266332,1957.4,1957.0,7.24897732]
[1772534801441,0.59266332,1957.4,1957.0,6.694]
[1772534801844,0.59266332,1957.8,1957.1,0.55497732]
[1772534802152,0.59266332,1957.8,1957.0,6.694]
[1772534802345,0.59266332,1957.8,1957.0,7.24897732]
[1772534802947,6.9992738,1957.9,1956.8,0.00505085]
[1772534802948,0.59266332,1957.6,1956.8,0.00505085]
[1772534803248,0.59266332,1957.6,1956.9,6.694]
[1772534803948,0.59266332,1957.4,1956.9,6.694]
[1772534804748,0.59266332,1957.4,1956.8,0.56002817]
[1772534804949,0.59266332,1957.4,1956.8,6.69905085]
[1772534805748,0.84813332,1957.5,1956.9,0.55497732]
[1772534805947,0.59266332,1957.4,1956.9,0.55497732]
[1772534806547,0.84813332,1957.5,1956.9,0.55497732]
[1772534806943,0.25547,1957.5,1956.9,0.55497732]
[1772534807344,0.59266332,1957.7,1956.9,0.55497732]
[1772534807649,0.59266332,1957.6,1957.0,7.24997732]
[1772534807848,0.59266332,1957.6,1956.8,0.00505085]
[1772534807849,0.59266332,1957.6,1956.8,0.58491969]
[1772534808050,0.55877265,1957.4,1956.8,0.00505085]
[1772534808848,0.25549,1957.3,1956.8,0.00505085]
[1772534809052,0.55877265,1957.2,1956.8,0.00505085]
[1772534810249,0.55877265,1957.2,1956.8,0.58491969]
[1772534810452,0.55877265,1957.6,1956.8,0.58491969]
[1772534810847,0.55877265,1957.6,1956.9,7.27486884]
[1772534811153,0.55877265,1957.4,1957.0,0.57986884]
[1772534811354,0.55877265,1957.8,1957.0,0.57986884]
[1772534812648,0.25544,1957.7,1957.0,0.57986884]
[1772534812849,0.55877265,1957.6,1957.1,6.695]
[1772534813154,0.55877265,1957.6,1957.0,6.695]
[1772534813753,0.55877265,1957.9,1957.1,0.57986884]
[1772534814354,0.55877265,1957.9,1957.2,7.27486884]
[1772534814555,0.55877265,1957.9,1957.3,0.57986884]
[1772534815155,0.00569933,1958.0,1957.3,0.57986884]
[1772534815357,0.55877265,1957.8,1957.2,6.695]
[1772534815659,0.55877265,1957.8,1957.2,7.27486884]
[1772534816051,0.56447198,1958.0,1957.3,0.57986884]
[1772534816256,0.00569933,1958.0,1957.3,0.57986884]
[1772534818355,0.25536,1958.3,1957.3,0.57986884]
[1772534818559,0.55877265,1958.5,1957.3,0.57986884]
[1772534818853,0.81408265,1958.7,1957.4,0.57986884]
[1772534819054,0.55877265,1958.6,1957.4,0.57986884]
[1772534819255,0.55877265,1958.6,1957.3,0.25549]
[1772534819256,0.55877265,1958.6,1957.6,0.57986884]
[1772534819455,0.56525173,1958.6,1957.8,0.57986884]
[1772534819655,0.56525173,1958.6,1957.9,7.27486884]
[1772534820160,0.55877265,1958.4,1957.9,7.27486884]
[1772534820452,0.55877265,1958.4,1957.9,7.27386884]
[1772534820660,0.81411265,1958.5,1958.0,0.57986884]
[1772534821353,0.25534,1958.5,1958.0,0.57986884]
[1772534821751,0.00647908,1958.6,1958.0,0.57986884]
[1772534822654,0.55877265,1959.3,1958.0,0.57986884]
[1772534822958,0.55877265,1959.0,1958.2,0.57986884]
[1772534823156,0.55877265,1958.8,1958.2,6.694]
[1772534823357,0.55877265,1958.8,1958.3,0.57986884]
[1772534823659,0.5651806,1958.8,1958.3,0.58524755]
[1772534823855,0.00640795,1958.8,1958.3,0.58524755]
[1772534824064,0.5651806,1958.8,1958.3,0.58524755]
[1772534824853,0.55877265,1959.3,1958.3,0.58524755]
[1772534825160,0.55877265,1959.6,1958.3,0.58524755]
[1772534825357,0.55877265,1959.6,1958.5,0.57986884]
[1772534825658,0.55877265,1959.4,1958.7,0.57986884]
[1772534825858,0.56296392,1959.4,1958.5,7.27286884]
[1772534826164,0.55877265,1959.2,1958.5,7.27286884]
[1772534826363,0.55877265,1959.2,1958.6,0.57986884]
[1772534827455,0.55877265,1959.2,1958.6,7.27286884]
[1772534827859,0.55877265,1959.2,1958.7,0.57986884]
[1772534828559,0.55877265,1959.2,1958.5,0.57986884]
[1772534828765,0.55877265,1959.2,1958.3,0.00537871]
[1772534828766,0.55877265,1959.2,1958.6,6.692]
[1772534829862,0.55877265,1959.2,1958.7,0.57986884]
[1772534830557,0.56296392,1959.4,1958.7,0.57986884]
[1772534830758,0.00419127,1959.4,1958.7,0.57986884]
[1772534830963,0.55877265,1959.8,1958.7,0.57986884]
[1772534831166,0.55877265,1959.6,1958.5,0.57986884]
[1772534831354,0.25523,1959.3,1958.5,0.57986884]
[1772534831555,0.55877265,1959.2,1958.5,0.57986884]
[1772534831760,0.55877265,1959.2,1958.5,7.27086884]
[1772534831957,0.56483491,1959.2,1958.5,7.27086884]
[1772534832864,0.56483491,1959.2,1958.6,0.57986884]
[1772534833863,0.56483491,1959.2,1958.4,0.57986884]
[1772534834062,0.56483491,1959.2,1958.6,7.27086884]
[1772534834365,0.56483491,1959.2,1958.6,6.691]
[1772534835166,0.56483491,1959.2,1958.6,7.27086884]
[1772534835366,0.56483491,1959.2,1958.7,0.57986884]
[1772534835563,0.00606226,1959.2,1958.7,0.57986884]
[1772534835762,0.90278012,1959.9,1958.7,0.57986884]
[1772534836067,0.55877265,1959.8,1958.7,0.57986884]
[1772534836867,0.55877265,1959.6,1958.9,0.57986884]
[1772534837063,0.55877265,1959.6,1959.1,0.57986884]
[1772534837264,0.55877265,1959.6,1959.1,7.26893922]
[1772534837466,0.55877265,1959.6,1959.2,0.57986884]
[1772534837669,0.54430123,1959.7,1959.2,0.57986884]
[1772534837868,0.00599695,1959.8,1959.2,0.57986884]
[1772534839864,0.58986193,1959.8,1959.2,0.57986884]
[1772534840169,0.58386498,1959.5,1958.8,0.57596424]
[1772534840469,0.58386498,1959.5,1958.9,6.69]
[1772534840664,0.58386498,1959.5,1958.9,7.26596424]
[1772534841574,0.58386498,1959.5,1958.9,0.57596424]
[1772534841867,0.58386498,1959.5,1959.0,0.57596424]
[1772534842068,0.25519,1959.6,1959.0,0.57596424]
[1772534842265,0.58386498,1959.7,1959.0,0.57596424]
[1772534843065,0.58386498,1959.7,1959.0,7.26596424]
[1772534843371,0.58386498,1959.7,1959.0,0.57596424]
[1772534844866,0.58386498,1959.5,1958.9,7.26596424]
[1772534845070,0.58386498,1959.5,1958.9,0.57596424]
[1772534845571,0.58986193,1959.8,1958.9,0.57596424]
[1772534845870,0.58986193,1959.8,1959.1,0.57596424]
[1772534846068,0.00599695,1959.8,1959.1,0.57596424]
[1772534847170,0.25514,1960.0,1959.3,0.57596424]
[1772534847370,0.25514,1960.0,1959.5,0.57596424]
[1772534847565,10.68691968,1960.9,1959.5,0.57596424]
[1772534847761,0.59711146,1960.8,1959.6,5.67654235]
[1772534847964,0.59711146,1960.8,1959.7,6.689]
[1772534848166,0.60088548,1960.8,1959.7,6.6949608]
[1772534848363,0.59711146,1960.6,1959.7,0.0059608]
[1772534848573,0.59711146,1960.6,1959.7,6.6949608]
[1772534848968,3.14751146,1960.6,1959.7,6.6949608]
[1772534849168,0.00377402,1960.8,1959.7,6.6949608]
[1772534849377,0.00377402,1960.8,1959.8,0.00202486]
[1772534849671,0.59987305,1960.8,1959.8,0.00202486]
[1772534849973,0.00377402,1960.8,1959.8,0.00202486]
[1772534850375,0.59609903,1961.2,1959.8,0.00202486]
[1772534850774,0.59609903,1961.2,1959.9,6.688]
[1772534851276,0.59711146,1961.6,1959.9,6.688]
[1772534851574,0.60306932,1961.4,1960.0,6.688]
[1772534851774,0.60306932,1961.4,1959.7,0.2611308]
[1772534851974,0.60306932,1961.4,1959.8,6.688]
[1772534852272,0.60306932,1961.9,1960.0,1.53408683]
[1772534852473,0.60306932,1961.7,1960.1,6.687]
[1772534852676,0.60306932,1961.7,1960.1,12.57166855]
[1772534852870,0.60306932,1961.5,1960.0,5.42787253]
[1772534853073,0.60306932,1961.5,1960.2,6.687]
[1772534853273,0.60306932,1961.3,1960.3,6.687]